bitfinex/quotes_ETHUSD_20241207
["timestamp","ask_amount","ask_price","bid_price","bid_amount"]
[1733594820327,0.55,4001.0,4000.2,0.8103]
[1733594821476,0.55,4001.0,4000.2,2.56018]
[1733594822541,0.55,4001.0,4000.4,1.74982]
[1733594822739,0.55,4001.0,4000.5,4.08643455]
[1733594823454,0.55,4001.4,4000.9,2.33667455]
[1733594823875,0.8115,4001.5,4001.0,1.74955]
[1733594824382,6.22866667,4001.8,4001.1,1.74951]
[1733594825475,0.86379392,4001.7,4001.1,1.74951]
[1733594825791,6.22866667,4001.8,4001.1,1.74951]
[1733594825792,4.75058588,4001.8,4001.4,1.74938]
[1733594826095,4.75058588,4001.8,4001.4,2.57278]
[1733594826244,4.75058588,4001.8,4001.6,1.74929]
[1733594826445,4.75058588,4001.8,4001.7,4.08592455]
[1733594826658,1.29544278,4001.9,4001.7,4.08592455]
[1733594826858,3.17452832,4002.8,4001.8,0.40859245]
[1733594827084,0.86362473,4002.7,4002.2,4.08570455]
[1733594827391,0.86362473,4002.7,4002.2,2.33667455]
[1733594827552,0.86362473,4002.7,4002.4,1.74893]
[1733594827760,0.83380942,4002.8,4002.4,1.74893]
[1733594828394,0.83380942,4002.8,4002.2,2.33667455]
[1733594828395,0.83380942,4002.8,4002.2,4.08570455]
[1733594828546,1.13291479,4002.7,4002.2,2.33667455]
[1733594828766,0.86369465,4002.6,4002.2,2.33667455]
[1733594829088,0.55,4002.4,4002.2,2.33667455]
[1733594829286,0.55,4002.6,4002.2,2.33667455]
[1733594829659,0.55,4002.4,4001.8,2.33667455]
[1733594829864,0.55,4002.2,4001.4,2.33667455]
[1733594830126,2.29913,4002.0,4001.4,2.33667455]
[1733594830267,0.55,4001.8,4001.4,2.33667455]
[1733594830461,2.76840093,4001.8,4001.0,3.16007455]
[1733594830705,0.55,4001.6,4001.0,3.16007455]
[1733594830908,0.55,4001.4,4001.0,2.33667455]
[1733594834011,0.55,4001.6,4001.0,2.33667455]
[1733594834176,2.34002231,4001.9,4001.0,4.49484501]
[1733594834177,1.81423706,4001.9,4001.0,4.49484501]
[1733594834507,2.5746727,4002.0,4001.1,0.7607]
[1733594834666,0.86388508,4001.9,4001.1,2.5102]
[1733594834865,1.04523706,4002.1,4001.1,2.5102]
[1733594835105,1.90911018,4002.1,4001.1,0.7607]
[1733594835290,0.86388732,4002.0,4001.1,0.7607]
[1733594835478,0.55,4001.9,4001.1,0.7607]
[1733594836821,0.86395741,4001.8,4001.1,0.7607]
[1733594836982,0.55,4001.7,4001.1,0.7607]
[1733594837183,0.55,4001.8,4001.1,0.7607]
[1733594837384,0.55,4001.9,4001.1,0.7607]
[1733594837679,0.55,4001.7,4001.1,0.7607]
[1733594837882,1.71787596,4001.7,4000.8,0.7607]
[1733594838901,3.46713596,4001.7,4000.8,0.7607]
[1733594840023,1.71787596,4001.7,4000.8,0.7607]
[1733594840184,1.319,4001.7,4001.0,2.33667455]
[1733594842228,0.55,4001.7,4001.0,2.33667455]
[1733594842464,0.55,4001.8,4001.0,2.33667455]
[1733594842607,0.55,4001.8,4001.0,4.08623455]
[1733594842947,0.55,4001.9,4001.1,1.74951]
[1733594843248,0.55,4001.7,4001.2,1.74946]
[1733594843446,1.81423706,4002.0,4001.3,1.7494]
[1733594843610,0.86478797,4001.9,4001.3,1.7494]
[1733594843810,0.769,4002.0,4001.3,1.7494]
[1733594844014,0.8647914,4001.9,4001.3,1.7494]
[1733594844212,0.8647914,4001.9,4001.4,2.33667455]
[1733594844442,1.04523706,4002.0,4001.4,2.33667455]
[1733594844640,0.86495672,4001.9,4001.5,0.7907]
[1733594844849,1.29741495,4002.0,4001.5,2.54004]
[1733594845059,2.49407571,4002.5,4001.9,1.74916]
[1733594845060,1.04523706,4002.4,4001.9,1.74916]
[1733594845217,0.86487159,4002.3,4001.9,1.74916]
[1733594845419,1.29751463,4002.3,4001.9,1.74916]
[1733594845713,0.86500883,4002.2,4001.9,1.74916]
[1733594845942,1.29752263,4002.2,4001.8,2.33667455]
[1733594846309,0.55,4002.0,4001.8,2.33667455]
[1733594846516,0.55,4002.0,4001.8,4.08587455]
[1733594846713,0.55,4002.2,4001.8,4.08587455]
[1733594847026,1.59523706,4002.3,4001.8,4.08587455]
[1733594847234,0.55,4002.1,4001.8,4.08587455]
[1733594847561,0.55,4002.2,4001.8,4.08587455]
[1733594847864,0.55,4002.0,4001.8,4.08587455]
[1733594848223,0.55,4002.2,4001.8,2.33667455]
[1733594848524,0.55,4002.0,4001.8,2.33667455]
[1733594848838,1.04523706,4002.3,4001.8,2.33667455]
[1733594849018,1.04523706,4002.4,4001.8,2.33667455]
[1733594849226,2.16298778,4002.3,4001.8,2.33667455]
[1733594849426,2.16302752,4002.2,4001.9,1.74915]
[1733594849737,2.34305435,4002.3,4001.8,2.33667455]
[1733594849935,3.20828974,4002.2,4001.8,2.33667455]
[1733594850105,0.55,4002.0,4001.8,2.33667455]
[1733594850306,0.55,4002.1,4001.8,2.33667455]
[1733594850532,1.84786998,4002.2,4001.5,0.7907]
[1733594850744,1.3077,4002.0,4001.4,2.33667455]
[1733594850912,0.55,4001.8,4001.4,2.33667455]
[1733594851099,0.55,4001.6,4001.4,2.33667455]
[1733594851815,0.55,4001.7,4001.4,2.33667455]
[1733594852011,0.55,4001.5,4001.4,2.33667455]
[1733594852330,1.41548267,4001.5,4001.4,2.33667455]
[1733594852933,0.55,4001.5,4001.4,2.33667455]
[1733594853135,1.84822354,4001.6,4001.4,2.33667455]
[1733594853355,0.55,4001.6,4001.4,2.33667455]
[1733594853528,1.41548238,4001.5,4001.4,2.33667455]
[1733594854143,2.71378538,4001.5,4001.4,2.33667455]
[1733594854348,1.41551415,4001.5,4001.4,2.33667455]
[1733594854569,1.84821183,4001.6,4001.4,2.33667455]
[1733594854797,0.55,4001.6,4001.4,2.33667455]
[1733594855220,0.55,4001.7,4001.4,2.33667455]
[1733594855428,1.04523706,4001.8,4001.4,2.33667455]
[1733594855429,0.55,4001.8,4001.4,2.33667455]
[1733594855836,0.55,4001.6,4001.4,2.33667455]
[1733594856311,1.59523706,4001.7,4001.4,2.33667455]
[1733594856521,0.55,4001.5,4001.4,2.33667455]
[1733594856876,0.55,4001.6,4001.4,2.33667455]
[1733594857082,0.55,4001.6,4000.9,0.7907]
[1733594857083,1.29833271,4001.5,4000.9,0.7907]
[1733594857295,1.911863,4001.6,4000.9,0.7907]
[1733594857296,0.55,4001.4,4000.9,0.7907]
[1733594857496,0.55,4001.4,4000.9,3.12737455]
[1733594857698,1.29835659,4001.5,4000.9,3.12737455]
[1733594857699,0.55,4001.5,4000.9,2.33667455]
[1733594858100,0.55,4001.3,4000.9,2.33667455]
[1733594858685,1.14899753,4001.3,4000.9,2.26667455]
[1733594858891,0.55,4001.1,4000.9,2.26667455]
[1733594859087,0.8656355,4001.0,4000.9,2.26667455]
[1733594859291,1.4156355,4001.0,4000.9,2.26667455]
[1733594859994,0.55,4000.9,4000.3,1.790917]
[1733594860195,0.55,4000.7,4000.3,0.7907]
[1733594860701,1.29831716,4000.9,4000.3,0.7907]
[1733594860702,1.84831716,4000.8,4000.3,0.7907]
[1733594860898,0.55,4000.8,4000.3,0.7907]
[1733594861107,0.86555639,4000.7,4000.3,0.7907]
[1733594861277,0.86555639,4000.7,3999.2,1.56644765]
[1733594861278,0.79607934,4000.6,3999.6,3.12737455]
[1733594861476,0.55,4000.4,3999.6,3.12737455]
[1733594861777,0.55,4000.2,3999.6,3.12737455]
[1733594862424,0.55,4000.3,3999.6,3.12737455]
[1733594862708,1.84803854,4000.3,3999.6,3.12737455]
[1733594862878,0.55,4000.3,3999.6,3.12737455]
[1733594863067,1.84805729,4000.3,3999.6,3.12737455]
[1733594863401,0.55,4000.3,3999.6,3.12737455]
[1733594865364,0.55,4000.5,3999.6,3.12737455]
[1733594866205,2.29978,4000.5,3999.6,3.12737455]
[1733594866408,2.86435662,4000.5,3999.6,3.12737455]
[1733594866703,1.74983,4000.4,3999.6,3.12737455]
[1733594866919,0.55,4000.3,3999.6,3.12737455]
[1733594867399,0.55,4000.5,3999.6,3.12737455]
[1733594867568,1.11453734,4000.5,3999.6,3.12737455]
[1733594867765,0.55,4000.6,4000.0,2.33667455]
[1733594869399,0.55,4000.6,4000.4,2.33667455]
[1733594871390,1.57102231,4001.1,4000.4,2.33667455]
[1733594871391,1.83413706,4001.1,4000.4,2.33667455]
[1733594871590,0.86394067,4001.0,4000.8,2.33667455]
[1733594871783,0.7889,4001.1,4000.8,2.33667455]
[1733594872026,3.7889,4001.1,4000.8,2.33667455]
[1733594872385,0.86386945,4001.0,4000.8,2.33667455]
[1733594872682,0.55,4000.9,4000.8,2.33667455]
[1733594872878,0.55,4001.0,4000.8,2.33667455]
[1733594874244,0.55,4000.9,4000.8,2.33667455]
[1733594874470,1.41392839,4000.9,4000.8,2.33667455]
[1733594874781,1.41403123,4000.9,4000.8,2.33667455]
[1733594877049,0.55,4001.0,4000.8,2.33667455]
[1733594878327,1.4139868,4000.9,4000.8,2.33667455]
[1733594878528,0.55,4000.9,4000.8,2.33667455]
[1733594879038,0.55,4001.1,4000.8,2.33667455]
[1733594879241,1.59523706,4001.2,4000.8,2.33667455]
[1733594879413,0.55,4001.2,4000.8,2.33667455]
[1733594880249,0.55,4001.3,4000.8,2.33667455]
[1733594880543,1.59523706,4001.4,4000.8,2.33667455]
[1733594880703,0.55,4001.2,4000.8,2.33667455]
[1733594881105,2.89108984,4001.4,4000.8,2.33667455]
[1733594881364,0.55,4001.2,4000.8,2.33667455]
[1733594881857,0.55,4001.4,4000.8,2.33667455]
[1733594882022,1.59523706,4001.4,4000.8,2.33667455]
[1733594882372,0.55,4001.2,4000.8,2.33667455]
[1733594882532,0.55,4001.3,4000.8,2.33667455]
[1733594882930,1.04523706,4001.4,4000.8,2.33667455]
[1733594882931,0.55,4001.1,4000.8,2.33667455]
[1733594883416,0.55,4001.2,4000.8,2.33667455]
[1733594883619,0.55,4001.0,4000.8,2.33667455]
[1733594883835,0.55,4001.2,4000.8,2.33667455]
[1733594884267,0.78360811,4001.3,4000.8,2.33667455]
[1733594884571,0.55,4001.1,4000.8,2.33667455]
[1733594884771,0.55,4001.2,4000.8,2.33667455]
[1733594884974,0.55,4001.2,4000.4,2.33667455]
[1733594885267,0.55,4001.0,4000.4,2.33667455]
[1733594885469,0.55,4001.1,4000.4,2.33667455]
[1733594885968,0.55,4001.2,4000.4,2.33667455]
[1733594886472,0.55,4001.0,4000.4,2.33667455]
[1733594886831,0.55,4001.1,4000.4,2.33667455]
[1733594887243,0.78360811,4001.2,4000.4,2.33667455]
[1733594887536,0.55,4001.0,4000.4,2.33667455]
[1733594887830,0.78360811,4001.2,4000.4,2.33667455]
[1733594888020,0.55,4001.0,4000.4,2.33667455]
[1733594888435,0.99772522,4001.0,4000.0,2.33667455]
[1733594888663,0.55,4000.5,4000.0,2.33667455]
[1733594889074,0.55,4000.3,4000.0,2.33667455]
[1733594890227,0.78385268,4000.4,4000.0,2.33667455]
[1733594890422,0.55,4000.2,4000.0,2.33667455]
[1733594890862,0.55,4000.4,4000.0,2.33667455]
[1733594891022,0.55,4000.5,4000.0,2.33667455]
[1733594891223,0.55,4000.6,4000.0,2.33667455]
[1733594891558,0.78385268,4000.6,4000.0,2.33667455]
[1733594891771,0.55,4000.6,4000.0,2.33667455]
[1733594891924,0.78385268,4000.6,4000.5,0.8109]
[1733594892131,0.55,4000.8,4000.5,0.8109]
[1733594892479,1.64773873,4000.8,4000.5,0.8109]
[1733594892736,1.04523706,4000.9,4000.5,0.8109]
[1733594892737,0.55,4000.6,4000.5,0.8109]
[1733594893024,1.59523706,4000.8,4000.5,0.8109]
[1733594893236,1.59523706,4000.8,4000.4,2.33667455]
[1733594893237,0.55,4000.6,4000.4,2.33667455]
[1733594893608,0.55,4000.7,4000.4,2.33667455]
[1733594893926,0.55,4000.5,4000.4,2.33667455]
[1733594894128,0.55,4000.6,4000.4,2.33667455]
[1733594894890,0.78385575,4000.7,4000.4,2.33667455]
[1733594895236,0.55,4000.5,4000.4,2.33667455]
[1733594895530,1.41445394,4000.5,4000.4,2.33667455]
[1733594895730,0.55,4000.6,4000.4,2.33667455]
[1733594895935,2.34107853,4000.7,4000.4,2.33667455]
[1733594895936,0.55,4000.7,4000.4,2.33667455]
[1733594896110,0.55,4000.5,4000.4,2.33667455]
[1733594896310,1.41494617,4000.5,4000.4,2.33667455]
[1733594896934,1.04523706,4000.8,4000.6,0.8109]
[1733594897243,1.04523706,4000.8,4000.7,2.33667455]
[1733594897395,3.20823446,4000.8,4000.7,2.33667455]
[1733594898010,3.75823446,4000.8,4000.7,2.33667455]
[1733594898206,2.71330953,4000.8,4000.7,2.33667455]
[1733594898415,2.94721364,4000.8,4000.7,2.33667455]
[1733594898927,2.71330953,4000.8,4000.7,2.33667455]
[1733594899212,2.94722156,4000.8,4000.7,2.33667455]
[1733594899932,2.9476148,4000.8,4000.7,2.33667455]
[1733594900297,4.51863711,4000.8,4000.7,2.33667455]
[1733594901198,0.55,4000.7,4000.3,3.14757455]
[1733594901536,1.5971753,4000.5,4000.3,3.14757455]
[1733594901838,2.71429844,4000.4,4000.3,3.14757455]
[1733594903298,3.76147374,4000.4,4000.3,3.14757455]
[1733594904728,3.21147374,4000.4,4000.3,5.387179]
[1733594904931,2.16654367,4000.4,4000.3,5.387179]
[1733594905824,0.86661747,4000.4,4000.3,5.387179]
[1733594906024,2.16656756,4000.4,4000.3,5.387179]
[1733594907303,2.16656756,4000.4,4000.3,3.637319]
[1733594907499,3.21374286,4000.4,4000.3,3.637319]
[1733594907935,3.76374286,4000.4,4000.3,3.14757455]
[1733594908138,3.76374286,4000.4,4000.3,2.33667455]
[1733594909547,3.76409677,4000.4,4000.3,2.33667455]
[1733594909747,2.71692147,4000.4,4000.3,2.33667455]
[1733594911019,3.76519838,4000.4,4000.3,2.33667455]
[1733594911462,2.71692147,4000.4,4000.3,2.33667455]
[1733594911769,3.76524065,4000.4,4000.3,2.33667455]
[1733594912073,2.71692147,4000.4,4000.3,2.33667455]
[1733594912690,3.76525917,4000.4,4000.3,2.33667455]
[1733594912862,2.71692147,4000.4,4000.3,2.33667455]
[1733594913471,4.28794378,4000.4,4000.3,2.33667455]
[1733594913684,4.45074956,4000.4,4000.3,2.33667455]
[1733594913886,4.28956044,4000.4,4000.3,2.33667455]
[1733594914380,4.28987949,4000.4,4000.3,2.33667455]
[1733594914949,3.21559582,4000.4,4000.3,5.08740201]
[1733594915350,2.16724052,4000.4,4000.3,5.08740201]
[1733594915882,3.21559582,4000.4,4000.3,5.08740201]
[1733594916997,3.76559582,4000.4,4000.3,4.08653455]
[1733594917189,2.71724052,4000.4,4000.3,2.33667455]
[1733594918647,2.71724052,4000.4,4000.3,4.08653455]
[1733594919054,4.28987293,4000.4,4000.3,4.08653455]
[1733594919451,2.71723396,4000.4,4000.3,4.08653455]
[1733594921492,2.16723396,4000.4,4000.3,4.08653455]
[1733594921676,3.21558207,4000.4,4000.3,4.08653455]
[1733594922346,3.21558207,4000.4,4000.3,4.74690501]
[1733594923892,1.04834811,4000.4,4000.3,4.74690501]
[1733594924060,3.21552044,4000.4,4000.3,4.08653455]
[1733594924246,2.16717233,4000.4,4000.3,4.08653455]
[1733594924450,3.7398113,4000.4,4000.3,4.08653455]
[1733594925389,4.2898113,4000.4,4000.3,4.08653455]
[1733594926253,4.45105788,4000.4,4000.3,4.08653455]
[1733594926465,4.68532483,4000.4,4000.3,4.08653455]
[1733594926865,5.48842483,4000.4,4000.3,4.08653455]
[1733594927089,7.58550797,4000.4,4000.3,4.08653455]
[1733594928814,6.78289697,4000.4,4000.3,2.82948454]
[1733594929501,4.45154688,4000.4,4000.3,3.63388454]
[1733594929673,4.29051835,4000.4,4000.3,4.17227099]
[1733594929877,2.71766133,4000.4,4000.3,4.17227099]
[1733594930076,4.29051835,4000.4,4000.3,4.17227099]
[1733594930693,3.74051835,4000.4,4000.3,5.43131529]
[1733594931005,3.74058498,4000.4,4000.3,5.43131529]
[1733594931370,2.16772796,4000.4,4000.3,5.43131529]
[1733594933612,2.1679453,4000.4,4000.3,5.43131529]
[1733594934380,3.67059383,4001.6,4000.4,1.74982]
[1733594934705,0.78414597,4001.2,4000.9,2.33866884]
[1733594934920,0.23414597,4001.1,4001.0,1.74956]
[1733594935094,0.55,4001.1,4001.0,1.74956]
[1733594935273,0.78413141,4001.1,4001.0,1.74956]
[1733594935906,4.68681626,4001.1,4001.0,1.74956]
[1733594936875,7.30912116,4001.1,4001.0,1.74956]
[1733594937222,7.30912116,4001.1,4001.0,2.41378888]
[1733594937223,4.45268485,4001.1,4001.0,2.41378888]
[1733594937820,3.90229626,4001.1,4001.0,2.41378888]
[1733594938110,3.74106068,4001.1,4001.0,2.41378888]
[1733594938878,2.16815825,4001.1,4001.0,2.41378888]
[1733594939084,0.55,4001.2,4001.1,1.74951]
[1733594939410,4.28922613,4001.2,4001.1,2.30519077]
[1733594939715,3.90038622,4001.2,4001.1,2.30519077]
[1733594940012,5.9981269,4001.2,4001.1,2.30519077]
[1733594940215,3.90038622,4001.2,4001.1,2.30519077]
[1733594940707,5.99673395,4001.2,4001.1,2.30519077]
[1733594941015,3.90038622,4001.2,4001.1,2.30519077]
[1733594941312,4.45038622,4001.2,4001.1,1.74951]
[1733594941553,0.55,4001.1,4000.9,2.33866884]
[1733594941699,7.07106701,4001.0,4000.9,2.33866884]
[1733594941893,4.68426154,4001.0,4000.9,2.33866884]
[1733594945427,7.30494683,4001.0,4000.9,2.33866884]
[1733594945813,0.55,4000.9,4000.2,1.7499]
[1733594946020,2.09658387,4000.6,4000.5,2.33866884]
[1733594946318,5.99697009,4000.6,4000.5,2.33866884]
[1733594946520,3.90038622,4000.6,4000.5,2.33866884]
[1733594946737,3.90038622,4000.6,4000.5,3.12986884]
[1733594946935,3.90071874,4000.6,4000.5,3.12986884]
[1733594947234,3.90071874,4000.6,4000.5,5.36762672]
[1733594947235,2.16707786,4000.6,4000.5,5.36762672]
[1733594947530,3.7394703,4000.6,4000.5,5.36762672]
[1733594950642,3.7394703,4000.6,4000.5,4.10826463]
[1733594951996,3.73933374,4000.6,4000.5,4.10826463]
[1733594952196,3.21512116,4000.6,4000.5,5.18757138]
[1733594952417,0.86677652,4000.6,4000.5,5.18757138]
[1733594952622,1.04817986,4000.9,4000.5,5.18757138]
[1733594952796,1.57239244,4001.0,4000.9,2.5408]
[1733594953007,2.16650693,4001.0,4000.9,2.5408]
[1733594953211,3.21451634,4001.0,4000.9,2.5408]
[1733594953599,2.16650693,4001.0,4000.9,2.5408]
[1733594953831,0.86660277,4001.0,4000.9,2.5408]
[1733594954130,1.04800941,4001.3,4001.2,1.74947]
[1733594954340,3.21376161,4001.3,4001.2,2.82877675]
[1733594954500,2.16597507,4001.3,4001.2,2.82877675]
[1733594954699,3.21376161,4001.3,4001.2,2.82877675]
[1733594954901,2.16597507,4001.3,4001.2,3.43540863]
[1733594955536,1.57239244,4001.4,4001.3,1.74943]
[1733594955839,3.73749222,4001.4,4001.3,1.74943]
[1733594956907,3.21232908,4001.4,4001.3,1.74943]
[1733594957115,3.21232908,4001.4,4001.3,2.26792286]
[1733594958507,2.16509978,4001.4,4001.3,2.26792286]
[1733594958751,3.21232908,4001.4,4001.3,2.26792286]
[1733594959036,2.16509978,4001.4,4001.3,2.26792286]
[1733594959246,2.16509978,4001.4,4001.3,3.05912286]
[1733594959425,2.16437058,4001.4,4001.3,3.05912286]
[1733594959635,0.86603991,4001.4,4001.3,3.05912286]
[1733594960434,2.16422832,4001.4,4001.3,3.05912286]
[1733594960638,0.86603991,4001.4,4001.3,3.05912286]
[1733594962457,1.0472293,4001.6,4001.3,3.05912286]
[1733594962656,1.0472293,4001.6,4001.5,2.82864675]
[1733594962838,3.21008391,4001.6,4001.5,2.82864675]
[1733594963543,2.16285461,4001.6,4001.5,2.82864675]
[1733594963768,0.86514184,4001.6,4001.5,2.82864675]
[1733594963972,2.16270696,4001.6,4001.5,2.82864675]
[1733594964136,2.16270696,4001.6,4001.5,3.45880801]
[1733594964137,0.86514184,4001.6,4001.5,3.45880801]
[1733594964335,1.0472293,4001.9,4001.8,1.74921]
[1733594964538,3.2097352,4001.9,4001.8,2.82851675]
[1733594965275,3.2097352,4001.9,4001.8,3.63021675]
[1733594965439,2.1625059,4001.9,4001.8,3.63021675]
[1733594965646,2.16210865,4001.9,4001.8,3.63021675]
[1733594966632,2.85488387,4002.4,4002.0,1.74912]
[1733594966633,1.0472293,4002.1,4002.0,1.74912]
[1733594966974,3.75869821,4002.1,4002.0,1.74912]
[1733594968202,3.75869821,4002.1,4002.0,2.82842675]
[1733594968493,2.71146891,4002.1,4002.0,2.82842675]
[1733594968696,3.75869821,4002.1,4002.0,2.82842675]
[1733594969062,0.86458756,4002.1,4002.0,2.82842675]
[1733594969268,1.0472293,4002.3,4002.0,3.4742911]
[1733594969505,2.16084769,4002.2,4002.1,1.74908]
[1733594969703,2.16070399,4002.2,4002.1,1.74908]
[1733594970167,0.86433915,4002.2,4002.1,1.74908]
[1733594971501,0.86411278,4002.2,4002.1,1.74908]
[1733594971701,1.0472293,4002.4,4002.3,1.74899]
[1733594971903,3.20739673,4002.4,4002.3,1.74899]
[1733594972077,1.91122756,4002.4,4002.3,1.74899]
[1733594972282,3.20739673,4002.4,4002.3,1.74899]
[1733594972485,0.86399826,4002.4,4002.3,1.74899]
[1733594972823,2.16016743,4002.4,4002.3,1.74899]
[1733594973380,3.20739673,4002.4,4002.3,1.74899]
[1733594973587,1.91122756,4002.4,4002.3,1.74899]
[1733594973791,3.20739673,4002.4,4002.3,1.74899]
[1733594973992,1.91122756,4002.4,4002.3,1.74899]
[1733594974201,3.20739673,4002.4,4002.3,1.74899]
[1733594974525,1.91122756,4002.4,4002.3,1.74899]
[1733594974686,2.16016743,4002.4,4002.3,1.74899]
[1733594975360,3.20739673,4002.4,4002.3,1.74899]
[1733594975523,0.86399826,4002.4,4002.3,1.74899]
[1733594975981,3.20600473,4002.5,4002.2,1.74903]
[1733594976183,0.86260626,4002.4,4002.1,2.82838675]
[1733594976388,2.34339847,4002.5,4002.4,1.74895]
[1733594976696,3.41856161,4002.5,4002.4,1.07930675]
[1733594977117,2.0795132,4002.5,4002.4,1.07930675]
[1733594978031,3.64690851,4002.5,4002.4,1.07930675]
[1733594978225,2.0795529,4002.5,4002.4,1.07930675]
[1733594978785,3.6470114,4002.5,4002.4,1.07930675]
[1733594979294,2.0795529,4002.5,4002.4,1.07930675]
[1733594979717,3.64704913,4002.5,4002.4,1.07930675]
[1733594980223,2.0795529,4002.5,4002.4,1.07930675]
[1733594981113,2.07959134,4002.5,4002.4,1.07930675]
[1733594981420,2.07983828,4002.5,4002.4,1.07930675]
[1733594982415,2.07994142,4002.5,4002.4,1.07930675]
[1733594982814,2.07994142,4002.5,4002.4,2.82825675]
[1733594983532,3.64753935,4002.5,4001.8,1.74917]
[1733594983706,1.04506358,4002.3,4002.2,1.07930675]
[1733594983896,2.34127931,4002.3,4002.2,1.07930675]
[1733594984227,2.57501312,4002.3,4002.2,1.07930675]
[1733594984393,1.29620761,4002.3,4002.2,2.82833675]
[1733594984597,1.52994142,4002.3,4002.2,2.82833675]
[1733594984820,2.57500392,4002.3,4002.2,2.82833675]
[1733594985021,2.57507533,4002.3,4002.2,2.82833675]
[1733594985217,2.57504432,4002.3,4002.2,2.82833675]
[1733594985430,1.53001283,4002.3,4002.2,2.82833675]
[1733594985830,2.57506177,4002.3,4002.2,2.82833675]
[1733594986139,1.53000375,4002.3,4002.2,2.82833675]
[1733594987825,2.31460375,4002.3,4002.2,2.82833675]
[1733594988234,3.88220168,4002.3,4002.2,2.82833675]
[1733594990130,2.31460375,4002.3,4002.2,2.82833675]
[1733594990659,0.55,4002.2,4001.5,1.43186126]
[1733594990839,0.7846,4001.9,4001.7,1.07930675]
[1733594991044,2.89269554,4001.8,4001.7,1.07930675]
[1733594991749,2.89297405,4001.8,4001.7,2.82855675]
[1733594992056,1.04592548,4001.9,4001.7,2.82855675]
[1733594992353,1.04592548,4001.9,4001.7,1.07930675]
[1733594992556,1.29747469,4001.8,4001.7,2.82855675]
[1733594993218,1.04592548,4001.9,4001.7,2.82855675]
[1733594993718,1.27998399,4002.0,4001.7,2.82855675]
[1733594993919,2.89361462,4001.9,4001.7,2.82855675]
[1733594994223,1.29768914,4001.8,4001.7,2.82855675]
[1733594994755,2.34361462,4001.8,4001.7,2.82855675]
[1733594995265,0.55,4001.6,4001.0,0.7924]
[1733594995463,1.04659372,4001.4,4001.1,0.254198]
[1733594995637,1.04659372,4001.3,4001.2,1.74946]
[1733594995952,1.56989058,4001.5,4001.3,1.74943]
[1733594996253,2.16401231,4001.4,4001.3,1.74943]
[1733594996559,3.73390289,4001.4,4001.3,1.74943]
[1733594997996,3.89269061,4001.4,4001.3,1.74943]
[1733594999285,3.89269061,4001.4,4001.3,1.924373]
[1733594999691,3.89269061,4001.4,4001.3,3.00367975]
[1733595000257,3.89412408,4001.4,4001.3,3.00367975]
[1733595000556,2.16544578,4001.4,4001.3,3.00367975]
[1733595000747,3.73668021,4001.4,4001.3,3.00367975]
[1733595000948,2.16544578,4001.4,4001.3,3.00367975]
[1733595001276,3.21293432,4001.4,4001.3,3.00367975]
[1733595002556,0.86617831,4001.4,4001.3,3.79607975]
[1733595002861,1.04748854,4001.7,4001.6,1.7493]
[1733595003166,1.04748854,4001.7,4001.6,3.38314473]
[1733595003167,3.21269195,4001.7,4001.6,3.38314473]
[1733595003692,3.21277801,4001.7,4001.6,3.38314473]
[1733595003862,3.21275186,4001.7,4001.6,3.38314473]
[1733595004052,2.16528947,4001.7,4001.6,3.38314473]
[1733595005870,3.21281237,4001.7,4001.6,3.38314473]
[1733595006071,3.2128125,4001.7,4001.6,3.38314473]
[1733595006890,2.16528947,4001.7,4001.6,3.38314473]
[1733595007283,3.21282756,4001.7,4001.6,3.38314473]
[1733595007821,3.21287678,4001.7,4001.6,3.38314473]
[1733595008311,2.16528947,4001.7,4001.6,3.38314473]
[1733595008609,2.16552848,4001.7,4001.6,3.38314473]
[1733595009685,8.48e-06,4001.7,4001.6,5.22525148]
[1733595010086,0.7517,4002.7,4001.6,5.22525148]
[1733595010087,1.04762745,4001.9,4001.8,1.74921]
[1733595010293,1.04762745,4001.9,4001.8,4.60526965]
[1733595011627,1.57123443,4002.1,4001.9,1.74916]
[1733595011923,1.57123443,4002.1,4002.0,1.74912]
[1733595012293,1.73235176,4002.2,4001.9,1.74916]
[1733595012294,1.57123443,4002.2,4002.1,1.74908]
[1733595013030,1.73226759,4002.2,4002.1,1.74908]
[1733595013190,1.73226759,4002.2,4002.1,2.38450996]
[1733595014092,1.73226759,4002.2,4002.1,3.46381671]
[1733595014402,1.73226759,4002.2,4002.1,2.82838675]
[1733595015427,3.82885146,4002.2,4002.1,2.82838675]
[1733595015725,1.73226759,4002.2,4002.1,2.82838675]
[1733595017304,3.82885146,4002.2,4002.1,2.82838675]
[1733595017740,1.73226759,4002.2,4002.1,2.82838675]
[1733595017915,1.73226759,4002.2,4002.1,3.56379731]
[1733595019147,1.73226759,4002.2,4002.1,2.82838675]
[1733595019714,3.0315619,4002.2,4002.1,2.82838675]
[1733595020147,3.0315619,4002.2,4002.1,3.61598675]
[1733595021123,2.8705894,4002.2,4002.1,3.61598675]
[1733595021327,1.29929431,4002.2,4002.1,3.61598675]
[1733595021647,2.34678249,4002.2,4002.1,4.3604127]
[1733595022227,1.29929431,4002.2,4002.1,4.3604127]
[1733595022423,1.04748818,4002.3,4002.1,2.6113327]
[1733595022646,1.04748818,4002.3,4002.2,1.74903]
[1733595022960,2.34650707,4002.3,4002.2,1.74903]
[1733595023133,1.29901889,4002.3,4002.2,2.35998227]
[1733595023644,1.04748818,4002.4,4002.3,1.74899]
[1733595023847,1.04748818,4002.5,4002.4,1.74895]
[1733595024066,1.29879962,4002.5,4002.4,2.82825675]
[1733595025172,2.34584056,4002.5,4002.4,2.82825675]
[1733595026377,2.34584056,4002.5,4002.4,3.50028325]
[1733595026736,3.39462985,4003.1,4002.4,1.75133325]
[1733595026737,1.04704094,4002.6,4002.4,1.75133325]
[1733595027080,1.57129509,4002.8,4002.6,1.74886]
[1733595027247,1.29830975,4002.7,4002.6,1.74886]
[1733595027448,2.34506954,4002.7,4002.6,1.74886]
[1733595027748,1.04675979,4002.8,4002.7,1.74881]
[1733595028001,2.34481673,4002.8,4002.7,1.74881]
[1733595029272,1.04675979,4003.0,4002.7,2.9683135]
[1733595029476,1.04675979,4003.1,4002.7,2.9683135]
[1733595029779,1.04675979,4003.1,4003.0,2.1586135]
[1733595029932,3.20921621,4003.1,4003.0,2.82798675]
[1733595030139,2.16245642,4003.1,4003.0,3.9072935]
[1733595030642,3.20855993,4003.1,4003.0,3.9072935]
[1733595031352,2.16245642,4003.1,4003.0,3.9072935]
[1733595032447,0.86451669,4003.1,4003.0,3.9072935]
[1733595032867,2.1612314,4003.1,4003.0,3.9072935]
[1733595033481,0.86451669,4003.1,4003.0,3.9072935]